[Event "Mistrovství Čech mládeže 2023 - HD12"]
[Site "Harrachov, Czech Republic"]
[Date "2023.10.23"]
[Round "3.10"]
[White "Černý, Rodan"]
[Black "Školoud, Natanael"]
[Result "1/2-1/2"]
[TimeControl "90m + 30s"]
[WhiteElo "1383"]
[BlackElo "1193"]

1. e4 {[%clk 01:30:57]} {[%emt 00:00:03]} e5 {[%clk 01:30:56]} {[%emt
00:00:05]} 2. Nf3 {[%clk 01:31:23]} {[%emt 00:00:04]} Nf6 {[%clk 01:31:19]}
{[%emt 00:00:07]} 3. Nxe5 {[%clk 01:31:43]} {[%emt 00:00:10]} d6 {[%clk
01:31:38]} {[%emt 00:00:11]} 4. Nf3 {[%clk 01:32:01]} {[%emt 00:00:11]} Nxe4
{[%clk 01:31:50]} {[%emt 00:00:19]} 5. d4 {[%clk 01:32:26]} {[%emt 00:00:05]}
d5 {[%clk 01:32:02]} {[%emt 00:00:18]} 6. Be2 {[%clk 01:31:24]} {[%emt
00:01:31]} Be7 {[%clk 01:30:49]} {[%emt 00:01:43]} 7. O-O {[%clk 01:31:37]}
{[%emt 00:00:16]} O-O {[%clk 01:31:07]} {[%emt 00:00:13]} 8. Be3 {[%clk
01:29:34]} {[%emt 00:02:33]} Bf5 {[%clk 01:28:36]} {[%emt 00:03:01]} 9. Nbd2
{[%clk 01:27:52]} {[%emt 00:02:12]} Nc6 {[%clk 01:27:44]} {[%emt 00:01:22]} 10.
c4 {[%clk 01:20:26]} {[%emt 00:07:56]} Nxd2 {[%clk 01:19:53]} {[%emt 00:08:21]}
11. Qxd2 {[%clk 01:20:10]} {[%emt 00:00:45]} Nb4 {[%clk 01:18:25]} {[%emt
00:01:58]} 12. c5 {[%clk 01:19:46]} {[%emt 00:00:54]} Nc2 {[%clk 01:16:55]}
{[%emt 00:02:00]} 13. Rac1 {[%clk 01:19:53]} {[%emt 00:00:23]} Nxe3 {[%clk
01:16:56]} {[%emt 00:00:29]} 14. fxe3 {[%clk 01:20:10]} {[%emt 00:00:14]} c6
{[%clk 01:15:53]} {[%emt 00:01:33]} 15. b4 {[%clk 01:13:06]} {[%emt 00:07:33]}
Bg5 {[%clk 01:12:11]} {[%emt 00:04:12]} 16. Nxg5 {[%clk 01:11:10]} {[%emt
00:02:27]} Qxg5 {[%clk 01:12:13]} {[%emt 00:00:28]} 17. Rf3 {[%clk 01:11:27]}
{[%emt 00:00:12]} Rfe8 {[%clk 01:04:26]} {[%emt 00:08:18]} 18. Rg3 {[%clk
01:10:38]} {[%emt 00:01:19]} Qe7 {[%clk 01:04:20]} {[%emt 00:00:36]} 19. Rf1
{[%clk 01:10:46]} {[%emt 00:00:21]} Bg6 {[%clk 01:03:26]} {[%emt 00:01:25]} 20.
Bd3 {[%clk 01:10:15]} {[%emt 00:01:01]} Bxd3 {[%clk 01:01:58]} {[%emt
00:01:58]} 21. Qxd3 {[%clk 01:10:42]} {[%emt 00:00:03]} Qe4 {[%clk 01:01:22]}
{[%emt 00:01:06]} 22. Qe2 {[%clk 01:07:10]} {[%emt 00:04:01]} Re6 {[%clk
00:46:24]} {[%emt 00:15:28]} 23. a4 {[%clk 00:58:41]} {[%emt 00:08:59]} Rh6
{[%clk 00:41:19]} {[%emt 00:05:35]} 24. Rg4 {[%clk 00:57:14]} {[%emt 00:01:57]}
Qe7 {[%clk 00:38:08]} {[%emt 00:03:41]} 25. Qf2 {[%clk 00:53:55]} {[%emt
00:03:49]} Re8 {[%clk 00:36:19]} {[%emt 00:02:19]} 26. Kh1 {[%clk 00:53:45]}
{[%emt 00:00:40]} Qc7 {[%clk 00:35:46]} {[%emt 00:01:04]} 27. h3 {[%clk
00:52:54]} {[%emt 00:01:19]} Rg6 {[%clk 00:32:14]} {[%emt 00:04:03]} 28. Rf4
{[%clk 00:49:49]} {[%emt 00:02:55]} f6 1/2-1/2

[Event "Mistrovství Čech mládeže 2023 - HD12"]
[Site "Harrachov, Czech Republic"]
[Date "2023.10.23"]
[Round "3.12"]
[White "Havlík, David"]
[Black "Zeman, Jonáš"]
[Result "0-1"]
[TimeControl "90m + 30s"]
[WhiteElo "1331"]
[BlackElo "1216"]

1. d4 {[%clk 01:30:58]} {[%emt 00:00:02]} d5 {[%clk 01:30:15]} {[%emt
00:00:46]} 2. c4 {[%clk 01:31:23]} {[%emt 00:00:05]} dxc4 {[%clk 01:30:26]}
{[%emt 00:00:18]} 3. e4 {[%clk 01:31:48]} {[%emt 00:00:06]} e5 {[%clk
01:30:49]} {[%emt 00:00:06]} 4. Nf3 {[%clk 01:32:14]} {[%emt 00:00:05]} exd4
{[%clk 01:31:10]} {[%emt 00:00:09]} 5. Bxc4 {[%clk 01:32:38]} {[%emt 00:00:06]}
Nc6 {[%clk 01:31:10]} {[%emt 00:00:29]} 6. O-O {[%clk 01:33:04]} {[%emt
00:00:05]} Be6 {[%clk 01:31:30]} {[%emt 00:00:10]} 7. Bxe6 {[%clk 01:33:26]}
{[%emt 00:00:08]} fxe6 {[%clk 01:31:53]} {[%emt 00:00:07]} 8. Qb3 {[%clk
01:33:50]} {[%emt 00:00:06]} Qd7 {[%clk 01:32:13]} {[%emt 00:00:10]} 9. Bf4
{[%clk 01:31:47]} {[%emt 00:02:32]} Nf6 {[%clk 01:30:41]} {[%emt 00:02:02]} 10.
Nbd2 {[%clk 01:31:57]} {[%emt 00:00:20]} Bb4 {[%clk 01:28:55]} {[%emt
00:02:16]} 11. Rac1 {[%clk 01:31:06]} {[%emt 00:01:21]} Bxd2 {[%clk 01:27:04]}
{[%emt 00:02:20]} 12. Nxd2 {[%clk 01:31:18]} {[%emt 00:00:18]} e5 {[%clk
01:27:13]} {[%emt 00:00:22]} 13. Bg3 {[%clk 01:31:27]} {[%emt 00:00:20]} O-O-O
{[%clk 01:26:47]} {[%emt 00:00:56]} 14. f3 {[%clk 01:30:57]} {[%emt 00:01:01]}
h5 {[%clk 01:26:54]} {[%emt 00:00:20]} 15. Nc4 {[%clk 01:28:23]} {[%emt
00:03:06]} Rde8 {[%clk 01:26:32]} {[%emt 00:00:51]} 16. Rfd1 {[%clk 01:23:34]}
{[%emt 00:05:20]} h4 {[%clk 01:23:53]} {[%emt 00:03:09]} 17. Be1 {[%clk
01:22:51]} {[%emt 00:01:13]} g5 {[%clk 01:21:16]} {[%emt 00:03:07]} 18. Na5
{[%clk 01:16:41]} {[%emt 00:06:41]} Nxa5 {[%clk 01:16:51]} {[%emt 00:04:54]} 19.
Bxa5 {[%clk 01:16:44]} {[%emt 00:00:27]} c6 {[%clk 01:16:53]} {[%emt 00:00:29]}
20. Rc4 {[%clk 01:08:55]} {[%emt 00:08:19]} g4 {[%clk 01:12:05]} {[%emt
00:05:17]} 21. Be1 {[%clk 01:01:04]} {[%emt 00:08:21]} gxf3 {[%clk 01:08:40]}
{[%emt 00:03:54]} 22. Qxf3 {[%clk 01:01:17]} {[%emt 00:00:18]} Ref8 {[%clk
01:07:45]} {[%emt 00:01:25]} 23. Qa3 {[%clk 00:54:31]} {[%emt 00:07:16]} a6
{[%clk 01:06:22]} {[%emt 00:01:53]} 24. Bb4 {[%clk 00:51:01]} {[%emt 00:04:01]}
Rfg8 {[%clk 01:05:33]} {[%emt 00:01:18]} 25. Rdc1 {[%clk 00:37:39]} {[%emt
00:13:52]} Rg7 {[%clk 00:58:27]} {[%emt 00:07:36]} 26. R4c2 {[%clk 00:27:19]}
{[%emt 00:10:50]} Rhg8 {[%clk 00:53:07]} {[%emt 00:05:50]} 27. Qd3 {[%clk
00:25:52]} {[%emt 00:01:57]} Nh5 {[%clk 00:51:21]} {[%emt 00:02:17]} 28. Kh1
{[%clk 00:20:09]} {[%emt 00:06:12]} Nf4 {[%clk 00:50:10]} {[%emt 00:01:41]} 29.
Qf1 {[%clk 00:20:05]} {[%emt 00:00:33]} Rxg2 {[%clk 00:49:15]} {[%emt
00:01:26]} 30. Qc4 {[%clk 00:16:36]} {[%emt 00:03:59]} R8g7 {[%clk 00:46:03]}
{[%emt 00:03:42]} 31. Bd2 {[%clk 00:13:53]} {[%emt 00:03:12]} Rxh2+ {[%clk
00:40:41]} {[%emt 00:05:53]} 0-1

[Event "Mistrovství Čech mládeže 2023 - HD12"]
[Site "Harrachov, Czech Republic"]
[Date "2023.10.23"]
[Round "3.15"]
[White "Koupil, Štěpán"]
[Black "Vaníčková, Natálie"]
[Result "1-0"]
[TimeControl "90m + 30s"]
[WhiteElo "1467"]
[BlackElo "1122"]

1. e4 {[%clk 01:30:47]} {[%emt 00:00:12]} e5 {[%clk 01:30:07]} {[%emt
00:00:53]} 2. Nf3 {[%clk 01:30:56]} {[%emt 00:00:21]} Nf6 {[%clk 01:29:57]}
{[%emt 00:00:40]} 3. Nc3 {[%clk 01:30:33]} {[%emt 00:00:53]} Nc6 {[%clk
01:25:06]} {[%emt 00:05:21]} 4. d4 {[%clk 01:30:04]} {[%emt 00:01:00]} Bb4
{[%clk 01:21:29]} {[%emt 00:04:07]} 5. d5 {[%clk 01:26:21]} {[%emt 00:04:13]}
Nxe4 {[%clk 01:15:49]} {[%emt 00:06:09]} 6. Qd3 {[%clk 01:25:20]} {[%emt
00:01:31]} Bxc3+ {[%clk 00:57:24]} {[%emt 00:18:55]} 7. bxc3 {[%clk 01:24:51]}
{[%emt 00:00:59]} Nc5 {[%clk 00:56:45]} {[%emt 00:01:09]} 8. Qe3 {[%clk
01:21:05]} {[%emt 00:04:15]} d6 {[%clk 00:55:49]} {[%emt 00:01:28]} 9. dxc6
{[%clk 01:20:55]} {[%emt 00:00:40]} bxc6 {[%clk 00:53:43]} {[%emt 00:02:36]} 10.
Nxe5 {[%clk 01:18:24]} {[%emt 00:03:01]} dxe5 {[%clk 00:53:46]} {[%emt
00:00:27]} 11. Qxc5 {[%clk 01:18:44]} {[%emt 00:00:10]} Qd6 {[%clk 00:52:00]}
{[%emt 00:02:15]} 12. Ba3 {[%clk 01:15:43]} {[%emt 00:03:31]} O-O {[%clk
00:46:36]} {[%emt 00:05:54]} 13. Qxd6 {[%clk 01:11:45]} {[%emt 00:04:28]} cxd6
{[%clk 00:42:43]} {[%emt 00:04:23]} 14. Bxd6 {[%clk 01:12:04]} {[%emt
00:00:11]} Re8 {[%clk 00:42:18]} {[%emt 00:00:55]} 15. Bc4 {[%clk 01:10:37]}
{[%emt 00:01:57]} Be6 {[%clk 00:42:18]} {[%emt 00:00:30]} 16. Bxe6 {[%clk
01:10:12]} {[%emt 00:00:55]} Rxe6 {[%clk 00:42:30]} {[%emt 00:00:18]} 17. O-O-O
{[%clk 01:10:06]} {[%emt 00:00:36]} 1-0

[Event "Mistrovství Čech mládeže 2023 - HD12"]
[Site "Harrachov, Czech Republic"]
[Date "2023.10.23"]
[Round "3.16"]
[White "Melicharová, Veronika"]
[Black "Málek, Daniel"]
[Result "0-1"]
[TimeControl "90m + 30s"]
[WhiteElo "1108"]
[BlackElo "1404"]

1. e4 {[%clk 01:30:55]} {[%emt 00:00:04]} e5 {[%clk 01:30:38]} {[%emt
00:00:22]} 2. Nf3 {[%clk 01:30:58]} {[%emt 00:00:28]} Nc6 {[%clk 01:30:18]}
{[%emt 00:00:50]} 3. d4 {[%clk 01:30:53]} {[%emt 00:00:34]} exd4 {[%clk
01:30:35]} {[%emt 00:00:14]} 4. Nxd4 {[%clk 01:31:13]} {[%emt 00:00:10]} Bc5
{[%clk 01:30:53]} {[%emt 00:00:10]} 5. Be3 {[%clk 01:31:12]} {[%emt 00:00:32]}
Qf6 {[%clk 01:29:44]} {[%emt 00:01:39]} 6. c3 {[%clk 01:31:06]} {[%emt
00:00:36]} Nge7 {[%clk 01:29:30]} {[%emt 00:00:45]} 7. Bc4 {[%clk 01:26:18]}
{[%emt 00:05:18]} O-O {[%clk 01:29:23]} {[%emt 00:00:36]} 8. O-O {[%clk
01:26:16]} {[%emt 00:00:32]} d6 {[%clk 01:29:29]} {[%emt 00:00:23]} 9. Na3
{[%clk 01:20:26]} {[%emt 00:06:22]} Bxa3 {[%clk 01:28:40]} {[%emt 00:01:18]} 10.
bxa3 {[%clk 01:20:38]} {[%emt 00:00:19]} Qg6 {[%clk 01:28:36]} {[%emt
00:00:34]} 11. Qf3 {[%clk 01:17:32]} {[%emt 00:03:32]} Ne5 {[%clk 01:28:07]}
{[%emt 00:01:03]} 12. Bxf7+ {[%clk 01:06:35]} {[%emt 00:11:27]} Rxf7 {[%clk
01:26:25]} {[%emt 00:02:11]} 13. Qg3 {[%clk 01:06:42]} {[%emt 00:00:16]} Qxg3
{[%clk 01:25:31]} {[%emt 00:01:32]} 14. fxg3 {[%clk 01:07:01]} {[%emt
00:00:11]} Rxf1+ {[%clk 01:24:55]} {[%emt 00:01:05]} 15. Rxf1 {[%emt 00:00:11]}
Nc4 {[%emt 00:01:00]} 16. Bg5 {[%clk 01:04:50]} {[%emt 00:01:29]} Ng6 {[%clk
01:24:29]} {[%emt 00:00:58]} 17. a4 {[%clk 01:02:31]} {[%emt 00:02:49]} Bd7
{[%clk 01:24:03]} {[%emt 00:00:56]} 18. Rb1 {[%clk 00:59:02]} {[%emt 00:03:58]}
b6 {[%clk 01:22:55]} {[%emt 00:01:38]} 19. Rb4 {[%clk 00:54:36]} {[%emt
00:04:55]} Nge5 {[%clk 01:23:03]} {[%emt 00:00:23]} 20. Rb1 {[%clk 00:52:48]}
{[%emt 00:02:18]} c5 {[%clk 01:23:06]} {[%emt 00:00:28]} 21. Nb5 {[%clk
00:51:09]} {[%emt 00:02:10]} Rc8 {[%clk 01:17:40]} {[%emt 00:05:55]} 0-1

[Event "Mistrovství Čech mládeže 2023 - HD12"]
[Site "Harrachov, Czech Republic"]
[Date "2023.10.23"]
[Round "3.17"]
[White "Frantsev, Iegor"]
[Black "Koutecká, Magdalena"]
[Result "1-0"]
[TimeControl "90m + 30s"]
[WhiteElo "1397"]
[BlackElo "1123"]

1. d4 {[%clk 01:30:55]} {[%emt 00:00:04]} d5 {[%clk 01:30:54]} {[%emt
00:00:07]} 2. Bf4 {[%clk 01:31:14]} {[%emt 00:00:11]} Nf6 {[%clk 01:31:17]}
{[%emt 00:00:07]} 3. e3 {[%clk 01:31:40]} {[%emt 00:00:04]} e6 {[%clk
01:31:33]} {[%emt 00:00:13]} 4. c3 {[%clk 01:31:58]} {[%emt 00:00:12]} c5
{[%clk 01:31:45]} {[%emt 00:00:18]} 5. Nd2 {[%clk 01:32:17]} {[%emt 00:00:10]}
Qb6 {[%clk 01:31:24]} {[%emt 00:00:52]} 6. Qc2 {[%clk 01:31:12]} {[%emt
00:01:35]} Nc6 {[%clk 01:30:30]} {[%emt 00:01:24]} 7. Ngf3 {[%clk 01:31:19]}
{[%emt 00:00:22]} Bd7 {[%clk 01:28:27]} {[%emt 00:02:35]} 8. Bd3 {[%clk
01:29:29]} {[%emt 00:02:14]} Rc8 {[%clk 01:25:59]} {[%emt 00:03:04]} 9. Ne5
{[%clk 01:17:17]} {[%emt 00:12:40]} cxd4 {[%clk 01:17:08]} {[%emt 00:09:22]} 10.
Nxc6 {[%clk 01:16:56]} {[%emt 00:00:51]} dxe3 {[%clk 01:13:49]} {[%emt
00:03:48]} 11. Bxe3 {[%clk 01:15:20]} {[%emt 00:02:07]} Qxc6 {[%clk 01:13:44]}
{[%emt 00:00:34]} 12. O-O {[%clk 01:14:16]} {[%emt 00:01:35]} Bd6 {[%clk
00:59:30]} {[%emt 00:14:43]} 13. Bd4 {[%clk 01:06:01]} {[%emt 00:08:45]} e5
{[%clk 00:53:32]} {[%emt 00:06:29]} 14. Bxe5 {[%clk 01:01:07]} {[%emt
00:05:25]} Bxe5 {[%clk 00:45:55]} {[%emt 00:08:06]} 15. Rae1 {[%clk 01:01:02]}
{[%emt 00:00:35]} O-O {[%clk 00:34:19]} {[%emt 00:12:07]} 16. Rxe5 {[%clk
00:59:43]} {[%emt 00:01:48]} Qd6 {[%clk 00:31:12]} {[%emt 00:03:37]} 17. Rfe1
{[%clk 00:45:15]} {[%emt 00:14:58]} d4 {[%clk 00:27:01]} {[%emt 00:04:41]} 18.
c4 {[%clk 00:27:43]} {[%emt 00:18:02]} b6 {[%clk 00:24:58]} {[%emt 00:02:34]}
19. b3 {[%clk 00:24:03]} {[%emt 00:04:10]} g6 {[%clk 00:22:18]} {[%emt
00:03:09]} 20. h3 {[%clk 00:21:26]} {[%emt 00:03:07]} Rc7 {[%clk 00:15:51]}
{[%emt 00:06:57]} 21. Qb2 {[%clk 00:15:12]} {[%emt 00:06:42]} Bc6 {[%clk
00:14:10]} {[%emt 00:02:13]} 22. Nf1 {[%clk 00:11:17]} {[%emt 00:04:23]} Re8
{[%clk 00:12:40]} {[%emt 00:02:02]} 23. Rxe8+ {[%clk 00:11:20]} {[%emt
00:00:27]} Nxe8 {[%clk 00:12:39]} {[%emt 00:00:31]} 24. Qe2 {[%clk 00:10:24]}
{[%emt 00:01:22]} Ng7 {[%clk 00:11:56]} {[%emt 00:01:17]} 25. Ng3 {[%clk
00:10:03]} {[%emt 00:00:50]} Qf6 {[%clk 00:10:51]} {[%emt 00:01:35]} 26. Ne4
{[%clk 00:06:13]} {[%emt 00:04:20]} Bxe4 {[%clk 00:10:30]} {[%emt 00:00:52]} 27.
Qxe4 {[%clk 00:06:40]} {[%emt 00:00:04]} Kf8 {[%clk 00:10:09]} {[%emt
00:00:50]} 28. Qa8+ {[%clk 00:06:53]} {[%emt 00:00:17]} Ne8 {[%clk 00:10:26]}
{[%emt 00:00:13]} 29. Rxe8+ {[%clk 00:07:07]} {[%emt 00:00:16]} Kg7 {[%clk
00:10:44]} {[%emt 00:00:12]} 30. Rg8+ {[%clk 00:07:26]} {[%emt 00:00:11]} Kh6
{[%clk 00:11:11]} {[%emt 00:00:03]} 31. Qf8+ {[%clk 00:07:35]} {[%emt
00:00:20]} Kg5 {[%clk 00:11:28]} {[%emt 00:00:12]} 32. h4+ {[%clk 00:06:18]}
{[%emt 00:01:49]} Kh5 {[%clk 00:11:36]} {[%emt 00:00:19]} 33. Be2+ {[%clk
00:06:17]} {[%emt 00:00:33]} Kxh4 {[%clk 00:11:48]} {[%emt 00:00:19]} 34. Qh6#
{[%clk 00:06:43]} {[%emt 00:00:03]} 1-0

[Event "Mistrovství Čech mládeže 2023 - HD12"]
[Site "Harrachov, Czech Republic"]
[Date "2023.10.23"]
[Round "3.18"]
[White "Bukovskij, Dmitri"]
[Black "Vlček, Vítězslav"]
[Result "1/2-1/2"]
[TimeControl "90m + 30s"]
[WhiteElo "1391"]
[BlackElo "1120"]

1. d4 {[%clk 01:30:58]} {[%emt 00:00:02]} Nf6 {[%clk 01:30:35]} {[%emt
00:00:24]} 2. c4 {[%clk 01:31:19]} {[%emt 00:00:09]} g6 {[%clk 01:30:38]}
{[%emt 00:00:27]} 3. Nf3 {[%clk 01:31:09]} {[%emt 00:00:40]} Bg7 {[%clk
01:29:52]} {[%emt 00:01:17]} 4. e3 {[%clk 01:31:01]} {[%emt 00:00:37]} O-O
{[%clk 01:27:38]} {[%emt 00:02:45]} 5. Bd3 {[%clk 01:29:34]} {[%emt 00:01:57]}
d6 {[%clk 01:26:41]} {[%emt 00:01:27]} 6. O-O {[%clk 01:28:51]} {[%emt
00:01:13]} Nbd7 {[%clk 01:26:27]} {[%emt 00:00:44]} 7. Nc3 {[%clk 01:26:01]}
{[%emt 00:03:20]} e5 {[%clk 01:24:20]} {[%emt 00:02:37]} 8. dxe5 {[%clk
01:24:33]} {[%emt 00:01:57]} Nxe5 {[%clk 01:19:08]} {[%emt 00:05:42]} 9. Nxe5
{[%clk 01:22:02]} {[%emt 00:03:02]} dxe5 {[%clk 01:19:33]} {[%emt 00:00:05]} 10.
Be2 {[%clk 01:21:10]} {[%emt 00:01:21]} Qxd1 {[%clk 01:17:50]} {[%emt
00:02:14]} 11. Rxd1 {[%clk 01:21:27]} {[%emt 00:00:13]} Be6 {[%clk 01:16:49]}
{[%emt 00:01:31]} 12. b3 {[%clk 01:20:36]} {[%emt 00:01:20]} Rfd8 {[%clk
01:03:49]} {[%emt 00:13:30]} 13. Ba3 {[%clk 01:19:44]} {[%emt 00:01:22]} Rd7
{[%clk 00:49:32]} {[%emt 00:14:47]} 14. Rxd7 {[%clk 01:18:02]} {[%emt
00:02:12]} Bxd7 {[%clk 00:46:33]} {[%emt 00:03:30]} 15. Bf3 {[%clk 01:17:28]}
{[%emt 00:01:04]} c6 {[%clk 00:45:57]} {[%emt 00:01:07]} 16. Rd1 {[%clk
01:17:20]} {[%emt 00:00:37]} Be6 {[%clk 00:40:33]} {[%emt 00:05:54]} 17. h3
{[%clk 01:16:21]} {[%emt 00:01:29]} Bf8 {[%clk 00:39:54]} {[%emt 00:01:09]} 18.
Bxf8 {[%emt 00:01:04]} 1/2-1/2

[Event "Mistrovství Čech mládeže 2023 - HD12"]
[Site "Harrachov, Czech Republic"]
[Date "2023.10.23"]
[Round "3.19"]
[White "Křivka, Lukáš"]
[Black "Junová, Alexandra"]
[Result "1/2-1/2"]
[TimeControl "90m + 30s"]
[WhiteElo "1386"]
[BlackElo "1102"]

1. e4 {[%clk 01:30:46]} {[%emt 00:00:14]} e5 {[%clk 01:30:21]} {[%emt
00:00:39]} 2. Nf3 {[%clk 01:30:49]} {[%emt 00:00:27]} Nc6 {[%clk 01:30:43]}
{[%emt 00:00:08]} 3. d4 {[%clk 01:27:24]} {[%emt 00:03:55]} exd4 {[%clk
01:29:49]} {[%emt 00:01:24]} 4. Nxd4 {[%clk 01:27:45]} {[%emt 00:00:10]} d6
{[%clk 01:29:10]} {[%emt 00:01:09]} 5. Bb5 {[%clk 01:25:09]} {[%emt 00:03:05]}
Bd7 {[%clk 01:28:16]} {[%emt 00:01:23]} 6. Bxc6 {[%clk 01:22:13]} {[%emt
00:03:27]} bxc6 {[%clk 01:28:05]} {[%emt 00:00:41]} 7. Nc3 {[%clk 01:22:00]}
{[%emt 00:00:43]} Be7 {[%clk 01:28:11]} {[%emt 00:00:24]} 8. O-O {[%clk
01:21:34]} {[%emt 00:00:55]} Nf6 {[%clk 01:28:29]} {[%emt 00:00:12]} 9. h3
{[%clk 01:18:10]} {[%emt 00:03:54]} O-O {[%clk 01:23:26]} {[%emt 00:05:33]} 10.
Re1 {[%clk 01:13:36]} {[%emt 00:05:04]} c5 {[%clk 01:22:44]} {[%emt 00:01:13]}
11. Nf3 {[%clk 01:13:08]} {[%emt 00:00:57]} Re8 {[%clk 01:21:20]} {[%emt
00:01:54]} 12. b3 {[%clk 01:09:33]} {[%emt 00:04:04]} Be6 {[%clk 01:19:08]}
{[%emt 00:02:40]} 13. Bb2 {[%clk 01:03:54]} {[%emt 00:06:12]} Nd7 {[%clk
01:15:43]} {[%emt 00:03:56]} 14. Nd5 {[%clk 01:00:45]} {[%emt 00:03:38]} Bxd5
{[%clk 01:14:11]} {[%emt 00:02:01]} 15. exd5 {[%clk 01:00:57]} {[%emt
00:00:20]} Bf6 {[%clk 01:14:32]} {[%emt 00:00:08]} 16. Rxe8+ {[%clk 01:01:07]}
{[%emt 00:00:20]} Qxe8 {[%clk 01:14:57]} {[%emt 00:00:06]} 17. Bxf6 {[%clk
01:00:52]} {[%emt 00:00:44]} Nxf6 {[%clk 01:15:04]} {[%emt 00:00:22]} 18. c4
{[%clk 01:01:06]} {[%emt 00:00:17]} Qd7 {[%clk 01:14:16]} {[%emt 00:01:18]} 19.
Qd3 {[%clk 00:57:26]} {[%emt 00:04:09]} h6 {[%clk 01:14:08]} {[%emt 00:00:39]}
20. Re1 {[%clk 00:57:25]} {[%emt 00:00:30]} Re8 {[%clk 01:13:42]} {[%emt
00:00:56]} 21. Rxe8+ {[%clk 00:45:00]} {[%emt 00:12:56]} Qxe8 {[%clk 01:12:44]}
{[%emt 00:01:27]} 1/2-1/2

[Event "Mistrovství Čech mládeže 2023 - HD12"]
[Site "Harrachov, Czech Republic"]
[Date "2023.10.23"]
[Round "3.20"]
[White "Sehnoutka, Vít"]
[Black "Vo, Daniel"]
[Result "1-0"]
[TimeControl "90m + 30s"]
[WhiteElo "1041"]
[BlackElo "1341"]

1. d4 {[%clk 01:30:54]} {[%emt 00:00:05]} d5 {[%clk 01:30:52]} {[%emt
00:00:09]} 2. Bf4 {[%clk 01:31:16]} {[%emt 00:00:07]} Nf6 {[%clk 01:31:05]}
{[%emt 00:00:18]} 3. e3 {[%clk 01:31:31]} {[%emt 00:00:15]} c5 {[%clk
01:31:21]} {[%emt 00:00:13]} 4. c3 {[%clk 01:29:48]} {[%emt 00:02:14]} Nc6
{[%clk 01:31:21]} {[%emt 00:00:29]} 5. Nf3 {[%clk 01:30:07]} {[%emt 00:00:11]}
Bg4 {[%clk 01:31:03]} {[%emt 00:00:49]} 6. Nbd2 {[%clk 01:28:59]} {[%emt
00:01:38]} e6 {[%clk 01:30:40]} {[%emt 00:00:53]} 7. Be2 {[%clk 01:28:11]}
{[%emt 00:01:17]} c4 {[%clk 01:29:56]} {[%emt 00:01:14]} 8. Nh4 {[%clk
01:26:13]} {[%emt 00:02:28]} Bxe2 {[%clk 01:27:43]} {[%emt 00:02:42]} 9. Qxe2
{[%clk 01:26:22]} {[%emt 00:00:21]} Be7 {[%clk 01:27:35]} {[%emt 00:00:39]} 10.
Nhf3 {[%clk 01:26:16]} {[%emt 00:00:37]} a5 {[%clk 01:24:53]} {[%emt 00:03:12]}
11. O-O {[%clk 01:26:16]} {[%emt 00:00:30]} O-O {[%clk 01:22:23]} {[%emt
00:02:59]} 12. Ne5 {[%emt 00:06:15]} Rc8 {[%clk 01:17:45]} {[%emt 00:01:17]} 13.
Ndf3 {[%clk 01:24:06]} {[%emt 00:00:46]} Nxe5 {[%clk 01:16:23]} {[%emt
00:01:53]} 14. Nxe5 {[%clk 01:24:16]} {[%emt 00:00:19]} b5 {[%clk 01:15:41]}
{[%emt 00:01:13]} 15. h3 {[%clk 01:22:54]} {[%emt 00:01:50]} b4 {[%clk
01:11:54]} {[%emt 00:04:18]} 16. Ng4 {[%clk 01:22:10]} {[%emt 00:01:14]} Ne4
{[%clk 01:11:20]} {[%emt 00:01:05]} 17. Qc2 {[%clk 01:21:37]} {[%emt 00:01:01]}
bxc3 {[%clk 01:10:04]} {[%emt 00:01:47]} 18. bxc3 {[%clk 01:21:58]} {[%emt
00:00:10]} Rc6 {[%clk 01:08:04]} {[%emt 00:02:25]} 19. f3 {[%clk 01:21:58]}
{[%emt 00:00:34]} Nf6 {[%clk 01:07:37]} {[%emt 00:00:57]} 20. Nxf6+ {[%clk
01:22:06]} {[%emt 00:00:23]} Bxf6 {[%clk 01:07:30]} {[%emt 00:00:38]} 21. Rfd1
{[%clk 01:21:48]} {[%emt 00:00:47]} Bg5 {[%clk 01:06:30]} {[%emt 00:01:30]} 22.
Bxg5 {[%clk 01:21:12]} {[%emt 00:01:05]} Qxg5 {[%clk 01:06:47]} {[%emt
00:00:14]} 23. e4 {[%clk 01:21:33]} {[%emt 00:00:08]} dxe4 {[%clk 01:06:02]}
{[%emt 00:01:17]} 24. fxe4 {[%clk 01:21:53]} {[%emt 00:00:10]} f5 {[%clk
01:05:40]} {[%emt 00:00:51]} 25. Rf1 {[%clk 01:19:58]} {[%emt 00:02:24]} f4
{[%clk 01:00:38]} {[%emt 00:05:33]} 26. Rf3 {[%clk 01:20:05]} {[%emt 00:00:22]}
Qe7 {[%clk 00:58:37]} {[%emt 00:02:28]} 27. Qa4 {[%clk 01:19:24]} {[%emt
00:01:15]} Qc7 {[%clk 00:57:40]} {[%emt 00:01:25]} 28. Rd1 {[%clk 01:17:06]}
{[%emt 00:02:48]} Rd6 {[%clk 00:54:31]} {[%emt 00:03:38]} 29. e5 {[%clk
01:16:28]} {[%emt 00:01:11]} Rd5 {[%clk 00:54:11]} {[%emt 00:00:49]} 30. Rdf1
{[%clk 01:16:23]} {[%emt 00:00:35]} g5 {[%clk 00:53:26]} {[%emt 00:01:17]} 31.
g3 {[%clk 01:16:27]} {[%emt 00:00:25]} Qg7 {[%clk 00:53:04]} {[%emt 00:00:53]}
32. Kh2 {[%clk 01:15:58]} {[%emt 00:00:55]} fxg3+ {[%clk 00:52:49]} {[%emt
00:00:48]} 33. Kxg3 {[%clk 01:15:55]} {[%emt 00:00:32]} Rxf3+ {[%clk 00:52:24]}
{[%emt 00:00:56]} 34. Rxf3 {[%clk 01:16:19]} {[%emt 00:00:06]} Rd8 {[%clk
00:51:01]} {[%emt 00:01:50]} 35. Qxc4 {[%clk 01:15:32]} {[%emt 00:01:19]} Qe7
{[%clk 00:50:37]} {[%emt 00:00:53]} 36. a4 {[%clk 01:14:58]} {[%emt 00:01:06]}
h5 {[%clk 00:50:15]} {[%emt 00:00:51]} 37. Rf6 {[%clk 01:14:16]} {[%emt
00:01:09]} Re8 {[%clk 00:47:10]} {[%emt 00:03:39]} 38. d5 {[%clk 01:13:01]}
{[%emt 00:01:45]} exd5 {[%clk 00:45:17]} {[%emt 00:02:23]} 39. Qxd5+ {[%clk
01:13:19]} {[%emt 00:00:13]} Kg7 {[%clk 00:44:58]} {[%emt 00:00:48]} 40. Rf5
{[%clk 01:13:16]} {[%emt 00:00:33]} Kg6 {[%clk 00:42:56]} {[%emt 00:02:28]} 41.
Qe4 {[%clk 01:13:06]} {[%emt 00:00:42]} h4+ {[%clk 00:42:24]} {[%emt 00:01:04]}
42. Kf3 {[%clk 01:12:44]} {[%emt 00:00:51]} Kg7 {[%clk 00:42:18]} {[%emt
00:00:37]} 43. Qg4 {[%clk 01:11:49]} {[%emt 00:01:15]} Kg6 {[%clk 00:41:44]}
{[%emt 00:01:12]} 44. Rf6+ {[%clk 01:11:50]} {[%emt 00:00:29]} Kg7 {[%clk
00:41:52]} {[%emt 00:00:23]} 45. Qxg5+ {[%clk 01:11:57]} {[%emt 00:00:22]} 1-0